fUST/lending_fUST_20250408
["ID","MTS","AMOUNT","RATE_DAILY","PERIOD"]
[357475395,1744079444659,-500.0,0.00022191,2]
[357475396,1744079444671,-500.0,0.00022191,2]
[357475397,1744079444690,-500.0,0.00022191,2]
[357475398,1744079444703,-500.0,0.00022191,2]
[357475399,1744079444721,-500.0,0.00022191,2]
[357475400,1744079444735,-500.0,0.00022191,2]
[357475401,1744079444747,-526.21,0.00022191,2]
[357475402,1744079444757,-500.0,0.00022191,2]
[357475403,1744079444768,-500.0,0.00022191,2]
[357475404,1744079444777,-2114.72,0.00022191,2]
[357475405,1744079444787,-500.0,0.00022191,2]
[357475406,1744079444797,-500.0,0.00022191,2]
[357475407,1744079444807,-572.22,0.00022191,2]
[357475408,1744079444816,-500.0,0.00022191,2]
[357475409,1744079444826,-8763.46,0.00022191,2]
[357475410,1744079444835,-500.0,0.00022191,2]
[357475411,1744079444845,-1114.99,0.00022191,2]
[357475412,1744079444855,-500.0,0.00022191,2]
[357475413,1744079444864,-500.0,0.00022191,2]
[357475414,1744079444874,-500.0,0.00022191,2]
[357475415,1744079444883,-500.0,0.00022191,2]
[357475416,1744079444893,-500.0,0.00022191,2]
[357475417,1744079444903,-500.0,0.00022191,2]
[357475418,1744079444912,-836.02,0.00022191,2]
[357475419,1744079444922,-535.6744836,0.00022191,2]
[357475420,1744079444931,-1780.71,0.00022191,2]
[357475421,1744079444941,-500.0,0.00022191,2]
[357475422,1744079444951,-500.0,0.00022191,2]
[357475423,1744079444960,-500.0,0.00022191,2]
[357475424,1744079444970,-500.0,0.00022191,2]
[357475425,1744079444980,-595.24,0.00022191,2]
[357475426,1744079444989,-524.96,0.00022191,2]
[357475427,1744079444998,-500.0,0.00022191,2]
[357475428,1744079445007,-500.0,0.00022191,2]
[357475429,1744079445017,-500.0,0.00022191,2]
[357475430,1744079445026,-771.06,0.00022191,2]
[357475431,1744079445035,-500.0,0.00022191,2]
[357475432,1744079445045,-2262.69,0.00022191,2]
[357475433,1744079445055,-500.0,0.00022191,2]
[357475434,1744079445064,-500.0,0.00022191,2]
[357475435,1744079445075,-500.0,0.00022191,2]
[357475436,1744079445084,-2880.26,0.00022191,2]
[357475437,1744079445094,-500.0,0.00022191,2]
[357475438,1744079445105,-1798.88,0.00022191,2]
[357475439,1744079445114,-1134.35,0.00022191,2]
[357475440,1744079445124,-500.0,0.00022191,2]
[357475441,1744079445134,-589.5,0.00022191,2]
[357475442,1744079445144,-500.0,0.00022191,2]
[357475443,1744079445154,-500.0,0.00022191,2]
[357475444,1744079445304,-500.0,0.00022191,2]
[357475445,1744079445347,-1340.54,0.00022191,2]
[357475446,1744079445357,-500.0,0.00022191,2]
[357475447,1744079445366,-500.0,0.00022191,2]
[357475448,1744079445376,-2337.51,0.00022191,2]
[357475449,1744079445386,-542.01,0.00022191,2]
[357475450,1744079445396,-2076.71,0.00022191,2]
[357475451,1744079445407,-500.0,0.00022191,2]
[357475452,1744079445417,-730.76,0.00022191,2]
[357475453,1744079445427,-500.0,0.00022191,2]
[357475454,1744079445436,-1162.69,0.00022191,2]
[357475455,1744079445446,-1291.27,0.00022191,2]
[357475456,1744079445456,-500.0,0.00022191,2]
[357475457,1744079445467,-546.37,0.00022191,2]
[357475458,1744079445477,-500.0,0.00022191,2]
[357475459,1744079445487,-1701.69,0.00022191,2]
[357475460,1744079445497,-1276.21,0.00022191,2]
[357475461,1744079445507,-500.0,0.00022191,2]
[357475462,1744079445517,-500.0,0.00022191,2]
[357475463,1744079445527,-561.08,0.00022191,2]
[357475464,1744079445538,-500.0,0.00022191,2]
[357475465,1744079445548,-500.0,0.00022191,2]
[357475466,1744079445558,-500.0,0.00022191,2]
[357475467,1744079445567,-500.0,0.00022191,2]
[357475468,1744079445577,-890.46,0.00022191,2]
[357475469,1744079445587,-500.0,0.00022191,2]
[357475470,1744079445597,-5381.3,0.00022191,2]
[357475471,1744079445607,-1513.16,0.00022191,2]
[357475472,1744079445617,-500.0,0.00022191,2]
[357475473,1744079445627,-500.0,0.00022191,2]
[357475474,1744079445639,-500.0,0.00022191,2]
[357475475,1744079445649,-500.0,0.00022191,2]
[357475476,1744079445659,-720.44,0.00022191,2]
[357475477,1744079445669,-500.0,0.00022191,2]
[357475478,1744079445679,-500.0,0.00022191,2]
[357475479,1744079445688,-500.0,0.00022191,2]
[357475480,1744079445698,-500.0,0.00022191,2]
[357475481,1744079445709,-1073.11,0.00022191,2]
[357475482,1744079445719,-500.0,0.00022191,2]
[357475483,1744079445729,-568.94,0.00022191,2]
[357475484,1744079445739,-523.03,0.00022191,2]
[357475485,1744079445748,-500.0,0.00022191,2]
[357475486,1744079445758,-795.94,0.00022191,2]
[357475487,1744079445768,-590.76,0.00022191,2]
[357475488,1744079445779,-500.0,0.00022191,2]
[357475489,1744079445789,-1531.45,0.00022191,2]
[357475490,1744079445799,-500.0,0.00022191,2]
[357475491,1744079445809,-1878.37,0.00022191,2]
[357475492,1744079445820,-1180.34,0.00022191,2]
[357475493,1744079445829,-500.0,0.00022191,2]
[357475494,1744079445839,-2000.22,0.00022191,2]
[357475496,1744079445849,-1118.42,0.00022191,2]
[357475497,1744079445859,-500.0,0.00022191,2]
[357475498,1744079445868,-500.0,0.00022191,2]
[357475499,1744079445878,-1868.62,0.00022191,2]
[357475500,1744079445888,-500.0,0.00022191,2]
[357475501,1744079445898,-500.0,0.00022191,2]
[357475502,1744079445908,-500.0,0.00022191,2]
[357475503,1744079445918,-500.0,0.00022191,2]
[357475504,1744079445928,-1602.29,0.00022191,2]
[357475505,1744079445938,-500.0,0.00022191,2]
[357475506,1744079445947,-500.0,0.00022191,2]
[357475507,1744079445957,-500.0,0.00022191,2]
[357475508,1744079445967,-1915.21,0.00022191,2]
[357475509,1744079445977,-500.0,0.00022191,2]
[357475510,1744079445987,-602.81,0.00022191,2]
[357475511,1744079445997,-500.0,0.00022191,2]
[357475512,1744079446007,-2426.96,0.00022191,2]
[357475513,1744079446017,-500.0,0.00022191,2]
[357475514,1744079446027,-500.0,0.00022191,2]
[357475515,1744079446037,-500.0,0.00022191,2]
[357475516,1744079446047,-500.0,0.00022191,2]
[357475517,1744079446056,-500.0,0.00022191,2]
[357475518,1744079446066,-1165.83,0.00022191,2]
[357475519,1744079446076,-2935.5,0.00022191,2]
[357475520,1744079446086,-955.52,0.00022191,2]
[357475521,1744079446097,-500.0,0.00022191,2]
[357475522,1744079446107,-500.0,0.00022191,2]
[357475523,1744079446116,-500.0,0.00022191,2]
[357475524,1744079446126,-500.0,0.00022191,2]
[357475525,1744079446137,-1109.48,0.00022191,2]
[357475526,1744079446146,-500.0,0.00022191,2]
[357475527,1744079446156,-500.0,0.00022191,2]
[357475528,1744079446165,-500.0,0.00022191,2]
[357475529,1744079446175,-500.0,0.00022191,2]
[357475530,1744079446185,-1240.57,0.00022191,2]
[357475531,1744079446195,-500.0,0.00022191,2]
[357475532,1744079446205,-500.0,0.00022191,2]
[357475533,1744079446215,-500.0,0.00022191,2]
[357475534,1744079446225,-1640.16,0.00022191,2]
[357475535,1744079446235,-503.7,0.00022191,2]
[357475536,1744079446245,-500.0,0.00022191,2]
[357475537,1744079446255,-500.0,0.00022191,2]
[357475538,1744079446265,-1130.38,0.00022191,2]
[357475539,1744079446274,-500.0,0.00022191,2]
[357475540,1744079446284,-500.0,0.00022191,2]
[357475542,1744079446293,-853.03,0.00022191,2]
[357475543,1744079446302,-192.0,0.00022209,2]
[357475544,1744079446312,-225.18697532,0.00022209,2]
[357475545,1744079446322,-869.2501932,0.00022234,2]
[357475546,1744079446332,-233.82168327,0.00022264,2]
[357475547,1744079446342,-232.09328788,0.00022359,2]
[357475548,1744079446352,-500.0,0.00022465,2]
[357475549,1744079446361,-500.0,0.00022465,2]
[357475550,1744079446371,-500.0,0.00022465,2]
[357475551,1744079446381,-500.0,0.00022465,2]
[357475552,1744079446391,-500.0,0.00022465,2]
[357475553,1744079446402,-500.0,0.00022465,2]
[357475554,1744079446413,-500.0,0.00022465,2]
[357475555,1744079446423,-500.0,0.00022465,2]
[357475556,1744079446432,-500.0,0.00022465,2]
[357475557,1744079446443,-500.0,0.00022465,2]
[357475558,1744079446453,-500.0,0.00022465,2]
[357475559,1744079446463,-500.0,0.00022465,2]
[357475560,1744079446473,-500.0,0.00022465,2]
[357475561,1744079446483,-500.0,0.00022465,2]
[357475562,1744079446494,-500.11,0.00022465,2]
[357475563,1744079446504,-500.0,0.00022465,2]
[357475564,1744079446514,-500.0,0.00022465,2]
[357475565,1744079446523,-500.0,0.00022465,2]
[357475566,1744079446534,-500.0,0.00022465,2]
[357475567,1744079446543,-500.0,0.00022465,2]
[357475568,1744079446554,-500.0,0.00022465,2]
[357475569,1744079446564,-500.0,0.00022465,2]
[357475570,1744079446574,-500.0,0.00022465,2]
[357475571,1744079446584,-500.0,0.00022465,2]
[357475572,1744079446594,-500.0,0.00022465,2]
[357475573,1744079446603,-500.0,0.00022465,2]
[357475574,1744079446613,-500.0,0.00022465,2]
[357475575,1744079446623,-500.0,0.00022465,2]
[357475576,1744079446638,-200.0,0.00022465,2]
[357475577,1744079446649,-500.0,0.00022465,2]
[357475578,1744079446659,-500.0,0.00022465,2]
[357475579,1744079446671,-500.0,0.00022465,2]
[357475580,1744079446680,-500.0,0.00022465,2]
[357475581,1744079446690,-500.0,0.00022465,2]
[357475582,1744079446700,-500.0,0.00022465,2]
[357475583,1744079446711,-631.31216223,0.00022465,2]
[357475584,1744079446721,-500.0,0.00022465,2]
[357475585,1744079446730,-540.60496652,0.00022465,2]
[357475586,1744079446740,-500.0,0.00022465,2]
[357475587,1744079446750,-500.0,0.00022465,2]
[357475588,1744079446760,-500.0,0.00022465,2]
[357475589,1744079446769,-500.0,0.00022465,2]
[357475590,1744079446780,-500.0,0.00022465,2]
[357475591,1744079446790,-500.0,0.00022465,2]
[357475592,1744079446800,-500.0,0.00022465,2]
[357475593,1744079446810,-500.0,0.00022465,2]
[357475594,1744079446820,-509.49125095,0.00022465,2]
[357475595,1744079446829,-500.0,0.00022465,2]
[357475596,1744079446840,-500.0,0.00022465,2]
[357475597,1744079446850,-617.55,0.00022465,2]
[357475598,1744079446860,-500.0,0.00022465,2]
[357475599,1744079446869,-500.0,0.00022465,2]
[357475600,1744079446879,-500.0,0.00022465,2]
[357475601,1744079446890,-505.13795712,0.00022465,2]
[357475602,1744079446901,-500.0,0.00022465,2]
[357475603,1744079446911,-500.0,0.00022465,2]
[357475604,1744079446921,-655.89,0.00022465,2]
[357475605,1744079446931,-500.0,0.00022465,2]
[357475606,1744079446942,-500.0,0.00022465,2]
[357475607,1744079446951,-500.0,0.00022465,2]
[357475608,1744079446961,-500.0,0.00022465,2]
[357475609,1744079446971,-500.0,0.00022465,2]
[357475610,1744079446981,-694.6,0.00022465,2]
[357475611,1744079446991,-500.0,0.00022465,2]
[357475612,1744079447001,-500.0,0.00022465,2]
[357475613,1744079447010,-520.40182548,0.00022465,2]
[357475614,1744079447020,-777.63,0.00022465,2]
[357475615,1744079447030,-500.0,0.00022465,2]
[357475616,1744079447040,-536.91,0.00022465,2]
[357475617,1744079447050,-513.7883961,0.00022465,2]
[357475618,1744079447059,-533.60687066,0.00022465,2]
[357475619,1744079447069,-527.31,0.00022465,2]
[357475620,1744079447078,-500.0,0.00022465,2]
[357475621,1744079447088,-548.96601731,0.00022465,2]
[357475622,1744079447098,-647.06,0.00022465,2]
[357475623,1744079447108,-500.0,0.00022465,2]
[357475624,1744079447118,-1500.08,0.00022465,2]
[357475625,1744079447127,-500.0,0.00022465,2]
[357475626,1744079447137,-500.0,0.00022465,2]
[357475627,1744079447147,-500.0,0.00022465,2]
[357475628,1744079447156,-601.69,0.00022465,2]
[357475629,1744079447166,-500.0,0.00022465,2]
[357475630,1744079447175,-500.0,0.00022465,2]
[357475631,1744079447186,-500.0,0.00022465,2]
[357475632,1744079447196,-500.0,0.00022465,2]
[357475633,1744079447206,-500.0,0.00022465,2]
[357475634,1744079447215,-1208.47,0.00022465,2]
[357475635,1744079447225,-503.0306758,0.00022465,2]
[357475636,1744079447234,-500.0,0.00022465,2]
[357475637,1744079447244,-500.0,0.00022465,2]
[357475638,1744079447254,-1268.13,0.00022465,2]
[357475639,1744079447264,-500.0,0.00022465,2]
[357475640,1744079447274,-1140.19,0.00022465,2]
[357475641,1744079447284,-500.0,0.00022465,2]
[357475642,1744079447294,-727.74,0.00022465,2]
[357475643,1744079447304,-500.0,0.00022465,2]
[357475644,1744079447313,-500.0,0.00022465,2]
[357475645,1744079447323,-500.0,0.00022465,2]
[357475646,1744079447333,-225.88796031,0.00022465,2]
[357475647,1744079447343,-236.33364969,0.00022465,2]
[357475648,1744079447353,-554.86,0.00022465,2]
[357475649,1744079447362,-500.0,0.00022465,2]
[357475650,1744079447372,-831.74,0.00022465,2]
[357475651,1744079447382,-500.0,0.00022465,2]
[357475652,1744079447392,-500.0,0.00022465,2]
[357475653,1744079447402,-500.0,0.00022465,2]
[357475654,1744079447411,-1393.1,0.00022465,2]
[357475655,1744079447421,-951.68,0.00022465,2]
[357475656,1744079447431,-500.0,0.00022465,2]
[357475657,1744079447440,-500.0,0.00022465,2]
[357475658,1744079447450,-500.0,0.00022465,2]
[357475659,1744079447460,-500.0,0.00022465,2]
[357475660,1744079447469,-1353.37,0.00022465,2]
[357475661,1744079447479,-165.56989412,0.00022465,2]
[357475662,1744079447489,-500.0,0.00022465,2]
[357475663,1744079447499,-500.0,0.00022465,2]
[357475664,1744079447509,-500.0,0.00022465,2]
[357475665,1744079447518,-1182.11,0.00022465,2]
[357475666,1744079447528,-500.0,0.00022465,2]
[357475667,1744079447538,-500.0,0.00022465,2]
[357475668,1744079447548,-500.0,0.00022465,2]
[357475669,1744079447557,-500.0,0.00022465,2]
[357475670,1744079447567,-500.0,0.00022465,2]
[357475671,1744079447577,-500.0,0.00022465,2]
[357475672,1744079447587,-526.21,0.00022465,2]
[357475673,1744079447596,-500.0,0.00022465,2]
[357475674,1744079447606,-500.0,0.00022465,2]
[357475675,1744079447616,-2114.72,0.00022465,2]
[357475676,1744079447630,-500.0,0.00022465,2]
[357475677,1744079447640,-500.0,0.00022465,2]
[357475678,1744079447651,-572.22,0.00022465,2]
[357475679,1744079447661,-500.0,0.00022465,2]
[357475680,1744079447672,-8763.46,0.00022465,2]
[357475681,1744079447682,-500.0,0.00022465,2]
[357475682,1744079447692,-1114.99,0.00022465,2]
[357475683,1744079447702,-500.0,0.00022465,2]
[357475684,1744079447712,-500.0,0.00022465,2]
[357475685,1744079447722,-508.9054363,0.00022465,2]
[357475686,1744079447732,-500.0,0.00022465,2]
[357475687,1744079447741,-500.0,0.00022465,2]
[357475688,1744079447810,-500.0,0.00022465,2]
[357475689,1744079447820,-836.02,0.00022465,2]
[357475690,1744079447830,-1780.71,0.00022465,2]
[357475691,1744079447840,-500.0,0.00022465,2]
[357475692,1744079447850,-500.0,0.00022465,2]
[357475693,1744079447859,-500.0,0.00022465,2]
[357475694,1744079447869,-214.42236196,0.00022465,2]
[357475695,1744079447879,-595.24,0.00022465,2]
[357475696,1744079447888,-524.96,0.00022465,2]
[357475697,1744079447899,-520.7662381,0.00022465,2]
[357475698,1744079447908,-500.0,0.00022465,2]
[357475699,1744079447919,-500.0,0.00022465,2]
[357475700,1744079447928,-771.06,0.00022465,2]
[357475701,1744079447939,-500.0,0.00022465,2]
[357475702,1744079447948,-2262.69,0.00022465,2]
[357475703,1744079447958,-500.0,0.00022465,2]
[357475704,1744079447968,-500.0,0.00022465,2]
[357475705,1744079447977,-500.0,0.00022465,2]
[357475706,1744079447987,-2880.26,0.00022465,2]
[357475707,1744079447996,-500.0,0.00022465,2]
[357475708,1744079448006,-1798.88,0.00022465,2]
[357475709,1744079448015,-1134.35,0.00022465,2]
[357475710,1744079448025,-500.0,0.00022465,2]
[357475711,1744079448034,-589.5,0.00022465,2]
[357475712,1744079448044,-500.0,0.00022465,2]
[357475713,1744079448054,-500.0,0.00022465,2]
[357475714,1744079448064,-500.0,0.00022465,2]
[357475715,1744079448074,-1340.54,0.00022465,2]
[357475716,1744079448084,-500.0,0.00022465,2]
[357475717,1744079448094,-500.0,0.00022465,2]
[357475718,1744079448104,-2337.51,0.00022465,2]
[357475719,1744079448114,-542.01,0.00022465,2]
[357475720,1744079448123,-2076.71,0.00022465,2]
[357475721,1744079448133,-500.0,0.00022465,2]
[357475722,1744079448143,-730.76,0.00022465,2]
[357475723,1744079448154,-500.0,0.00022465,2]
[357475724,1744079448164,-1162.69,0.00022465,2]
[357475725,1744079448174,-1291.27,0.00022465,2]
[357475726,1744079448183,-500.0,0.00022465,2]
[357475727,1744079448193,-546.37,0.00022465,2]
[357475728,1744079448203,-500.0,0.00022465,2]
[357475729,1744079448213,-1701.69,0.00022465,2]
[357475730,1744079448222,-1276.21,0.00022465,2]
[357475731,1744079448232,-500.0,0.00022465,2]
[357475732,1744079448242,-500.0,0.00022465,2]
[357475733,1744079448251,-561.08,0.00022465,2]
[357475734,1744079448262,-500.0,0.00022465,2]
[357475735,1744079448271,-500.0,0.00022465,2]
[357475736,1744079448281,-500.0,0.00022465,2]
[357475737,1744079448290,-500.0,0.00022465,2]
[357475738,1744079448300,-890.46,0.00022465,2]
[357475739,1744079448309,-500.0,0.00022465,2]
[357475740,1744079448319,-5381.3,0.00022465,2]
[357475741,1744079448329,-1513.16,0.00022465,2]
[357475742,1744079448339,-500.0,0.00022465,2]
[357475743,1744079448348,-500.0,0.00022465,2]
[357475744,1744079448358,-500.0,0.00022465,2]
[357475745,1744079448368,-500.0,0.00022465,2]
[357475746,1744079448377,-720.44,0.00022465,2]
[357475747,1744079448387,-500.0,0.00022465,2]
[357475748,1744079448396,-500.0,0.00022465,2]
[357475749,1744079448406,-563.07982288,0.00022465,2]
[357475750,1744079448415,-500.0,0.00022465,2]
[357475751,1744079448425,-1073.11,0.00022465,2]
[357475752,1744079448434,-500.0,0.00022465,2]
[357475753,1744079448444,-568.94,0.00022465,2]
[357475754,1744079448453,-523.03,0.00022465,2]
[357475755,1744079448463,-500.0,0.00022465,2]
[357475756,1744079448472,-795.94,0.00022465,2]
[357475757,1744079448482,-590.76,0.00022465,2]
[357475758,1744079448493,-1531.45,0.00022465,2]
[357475759,1744079448503,-500.0,0.00022465,2]
[357475760,1744079448513,-500.0,0.00022465,2]
[357475761,1744079448522,-1878.37,0.00022465,2]
[357475762,1744079448532,-1180.34,0.00022465,2]
[357475763,1744079448542,-500.0,0.00022465,2]
[357475764,1744079448552,-2000.22,0.00022465,2]
[357475765,1744079448561,-1118.42,0.00022465,2]
[357475766,1744079448570,-500.0,0.00022465,2]
[357475767,1744079448580,-500.0,0.00022465,2]
[357475768,1744079448591,-1868.62,0.00022465,2]
[357475769,1744079448600,-500.0,0.00022465,2]
[357475770,1744079448610,-500.0,0.00022465,2]
[357475771,1744079448620,-500.0,0.00022465,2]
[357475772,1744079448631,-500.0,0.00022465,2]
[357475773,1744079448641,-500.0,0.00022465,2]
[357475774,1744079448652,-1602.29,0.00022465,2]
[357475775,1744079448662,-500.0,0.00022465,2]
[357475776,1744079448672,-500.0,0.00022465,2]
[357475777,1744079448681,-1915.21,0.00022465,2]
[357475778,1744079448691,-500.0,0.00022465,2]
[357475779,1744079448701,-602.81,0.00022465,2]
[357475780,1744079448711,-500.0,0.00022465,2]
[357475781,1744079448723,-2426.96,0.00022465,2]
[357475782,1744079448732,-500.0,0.00022465,2]
[357475783,1744079448742,-500.0,0.00022465,2]
[357475784,1744079448751,-500.0,0.00022465,2]
[357475785,1744079448761,-500.0,0.00022465,2]
[357475786,1744079448770,-500.0,0.00022465,2]
[357475787,1744079448780,-1165.83,0.00022465,2]
[357475788,1744079448789,-2935.5,0.00022465,2]
[357475789,1744079448799,-955.52,0.00022465,2]
[357475790,1744079448808,-500.0,0.00022465,2]
[357475791,1744079448818,-500.0,0.00022465,2]
[357475792,1744079448827,-500.0,0.00022465,2]
[357475793,1744079448836,-500.0,0.00022465,2]
[357475794,1744079448846,-1109.48,0.00022465,2]
[357475795,1744079448856,-500.0,0.00022465,2]
[357475796,1744079448865,-500.0,0.00022465,2]
[357475797,1744079448875,-500.0,0.00022465,2]
[357475798,1744079448885,-500.0,0.00022465,2]
[357475799,1744079448895,-1240.57,0.00022465,2]
[357475800,1744079448905,-500.0,0.00022465,2]
[357475801,1744079448915,-500.0,0.00022465,2]
[357475802,1744079448925,-500.0,0.00022465,2]
[357475803,1744079448935,-1640.16,0.00022465,2]
[357475804,1744079448944,-503.7,0.00022465,2]
[357475805,1744079448954,-500.0,0.00022465,2]
[357475806,1744079448964,-500.0,0.00022465,2]
[357475807,1744079448974,-1130.38,0.00022465,2]
[357475808,1744079448984,-500.0,0.00022465,2]
[357475809,1744079448994,-500.0,0.00022465,2]
[357475810,1744079449004,-853.03,0.00022465,2]
[357475811,1744079449014,-500.0,0.00022473,2]
[357475812,1744079449023,-151.0,0.000225,6]
[357475813,1744079449033,-232.09328788,0.00022639,2]
[357475814,1744079449043,-154.0,0.00022708,2]
[357475815,1744079449052,-500.0,0.00022739,2]
[357475816,1744079449063,-500.0,0.00022739,2]
[357475817,1744079449072,-500.0,0.00022739,2]
[357475818,1744079449082,-500.0,0.00022739,2]
[357475819,1744079449092,-500.0,0.00022739,2]
[357475820,1744079449101,-500.0,0.00022739,2]
[357475821,1744079449110,-500.0,0.00022739,2]
[357475822,1744079449120,-436.81734765,0.00022739,2]
[357475823,1744079449130,-500.0,0.00022739,2]
[357475824,1744079449140,-500.0,0.00022739,2]
[357475825,1744079449151,-500.0,0.00022739,2]
[357475826,1744079449161,-500.0,0.00022739,2]
[357475827,1744079449171,-500.0,0.00022739,2]
[357475828,1744079449181,-500.0,0.00022739,2]
[357475829,1744079449192,-500.11,0.00022739,2]
[357475830,1744079449202,-500.0,0.00022739,2]
[357475831,1744079449212,-268.67087719,0.00022739,2]
[357475832,1744079449222,-500.0,0.00022739,2]
[357475833,1744079449232,-500.0,0.00022739,2]
[357475834,1744079449242,-500.0,0.00022739,2]
[357475835,1744079449251,-500.0,0.00022739,2]
[357475836,1744079449261,-500.0,0.00022739,2]
[357475837,1744079449272,-500.0,0.00022739,2]
[357475838,1744079449282,-500.0,0.00022739,2]
[357475839,1744079449291,-500.0,0.00022739,2]
[357475840,1744079449302,-500.0,0.00022739,2]
[357475841,1744079449312,-500.0,0.00022739,2]
[357475842,1744079449322,-500.0,0.00022739,2]
[357475843,1744079449331,-200.0,0.00022739,2]
[357475844,1744079449341,-415.58738839,0.00022739,2]
[357475845,1744079449351,-500.0,0.00022739,2]
[357475846,1744079449361,-178.95340117,0.00022739,2]
[357475847,1744079449371,-500.0,0.00022739,2]
[357475848,1744079449381,-500.0,0.00022739,2]
[357475849,1744079449391,-500.0,0.00022739,2]
[357475850,1744079449401,-500.0,0.00022739,2]
[357475851,1744079449413,-500.0,0.00022739,2]
[357475852,1744079449423,-500.0,0.00022739,2]
[357475853,1744079449434,-500.0,0.00022739,2]
[357475854,1744079449444,-500.0,0.00022739,2]
[357475855,1744079449454,-500.0,0.00022739,2]
[357475856,1744079449463,-500.0,0.00022739,2]
[357475857,1744079449474,-500.0,0.00022739,2]
[357475858,1744079449484,-500.0,0.00022739,2]
[357475859,1744079449494,-500.0,0.00022739,2]
[357475860,1744079449504,-500.0,0.00022739,2]
[357475861,1744079449514,-617.55,0.00022739,2]
[357475862,1744079449524,-500.0,0.00022739,2]
[357475863,1744079449534,-500.0,0.00022739,2]
[357475864,1744079449544,-500.0,0.00022739,2]
[357475865,1744079449554,-500.0,0.00022739,2]
[357475866,1744079449565,-500.0,0.00022739,2]
[357475867,1744079449575,-655.89,0.00022739,2]
[357475868,1744079449584,-500.0,0.00022739,2]
[357475869,1744079449595,-500.0,0.00022739,2]
[357475870,1744079449604,-500.0,0.00022739,2]
[357475871,1744079449615,-500.0,0.00022739,2]
[357475872,1744079449627,-500.0,0.00022739,2]
[357475873,1744079449642,-694.6,0.00022739,2]
[357475874,1744079449652,-500.0,0.00022739,2]
[357475875,1744079449663,-500.0,0.00022739,2]
[357475876,1744079449675,-777.63,0.00022739,2]
[357475877,1744079449685,-500.0,0.00022739,2]
[357475878,1744079449695,-536.91,0.00022739,2]
[357475879,1744079449707,-527.31,0.00022739,2]
[357475880,1744079449717,-500.0,0.00022739,2]
[357475881,1744079449727,-647.06,0.00022739,2]
[357475882,1744079449737,-500.0,0.00022739,2]
[357475883,1744079449747,-1500.08,0.00022739,2]
[357475884,1744079449757,-500.0,0.00022739,2]
[357475885,1744079449767,-500.0,0.00022739,2]
[357475886,1744079449777,-647.74504502,0.00022739,2]
[357475887,1744079449788,-601.69,0.00022739,2]
[357475888,1744079449798,-500.0,0.00022739,2]
[357475889,1744079449809,-500.0,0.00022739,2]
[357475890,1744079449819,-500.0,0.00022739,2]
[357475891,1744079449829,-500.0,0.00022739,2]
[357475892,1744079449840,-500.0,0.00022739,2]
[357475893,1744079449850,-1208.47,0.00022739,2]
[357475894,1744079449860,-500.0,0.00022739,2]
[357475895,1744079449870,-500.0,0.00022739,2]
[357475896,1744079449879,-1268.13,0.00022739,2]